[Event "Azerbaijan-ch 1st League 2025"]
[Site "Baku"]
[Date "2025.01.12"]
[Round "7.4"]
[White "Rustamov, Rustam"]
[Black "Garayev, Kanan"]
[Result "1-0"]
[Annotator "RC"]
[ECO "C78"]
[WhiteElo "2305"]
[BlackElo "2340"]
[PlyCount "115"]
[EventDate "2025.01.05"]
[EventType "swiss"]
[EventCountry "AZE"]
[SourceTitle "playchess.com"]
[Source "ChessBase"]
[SourceQuality "1"]
[TimeControl "40/5400+30:1800+30"]

1. e4 {[%emt 0:00:08]} e5 {[%emt 0:02:01]} 2. Nf3 {[%emt 0:00:11]} Nc6 {[%emt 0:00:04]} 3. Bb5 {[%emt 0:00:04]} a6 {[%emt 0:00:02]} 4. Ba4 {[%emt 0:00:10]} Nf6 {[%emt 0:00:06]} 5. O-O {[%emt 0:00:07]} b5 {[%emt 0:00:05]} 6. Bb3 {[%emt 0:00:05]} Bc5 {[%emt 0:00:03]} 7. a4 {[%emt 0:00:10]} Rb8 {[%emt 0:01:58]} 8. c3 {[%emt 0:00:26]} d6 {[%emt 0:00:14]} 9. d4 {[%emt 0:02:08]} Bb6 {[%emt 0:00:05]} 10. a5 {[%emt 0:01:09]} Ba7 {[%emt 0:00:06]} 11. Be3 {[%emt 0:00:37]} Ra8 {[%emt 0:19:11]} 12. dxe5 {[%emt 0:04:06]} Nxe5 {[%emt 0:04:33]} 13. Nxe5 {[%emt 0:10:16]} dxe5 {[%emt 0:00:15]} 14. Qxd8+ {[%emt 0:02:02]} Kxd8 {[%emt 0:00:11]} 15. Bxa7 {[%emt 0:00:21]} Rxa7 {[%emt 0:00:01]} 16. Bxf7 {[%emt 0:00:31]} Nxe4 {[%emt 0:01:42]} 17. f3 {[%emt 0:03:04]} Nf6 {[%emt 0:02:07]} 18. Rd1+ {[%emt 0:02:24]} Ke7 {[%emt 0:01:20]} 19. Ba2 {[%emt 0:02:10]} Re8 {[%emt 0:08:22]} 20. Re1 {[%emt 0:11:01]} Kf8 {[%emt 0:01:01]} 21. Nd2 {[%emt 0:02:00]} c5 {[%emt 0:02:36]} 22. Ne4 {[%emt 0:02:26]} Nxe4 {[%emt 0:00:32]} 23. Rxe4 {[%emt 0:00:12]} Bf5 {[%emt 0:01:21]} 24. Re2 {[%emt 0:56:42]} Rd7 {[%emt 0:05:16]} 25. Rae1 {[%emt 0:00:00]} c4 {[%emt 0:01:09]} 26. Kf2 {[%emt 0:00:00]} Rd5 {[%emt 0:01:21]} 27. g4 {[%emt 0:00:00]} Bd3 {[%emt 0:02:03]} 28. Rd2 {[%emt 0:00:00]} b4 {[%emt 0:02:43]} 29. cxb4 {[%emt 0:00:00]} Rb8 {[%emt 0:00:29]} 30. Red1 {[%emt 0:00:00]} Rd4 {[%emt 0:04:37]} 31. b3 {[%emt 0:00:00]} Bc2 {[%emt 0:01:12]} 32. Rxc2 {[%emt 0:00:00]} Rxd1 {[%emt 0:00:05]} 33. bxc4 {[%emt 0:00:00]} Rxb4 {[%emt 0:00:52]} 34. c5 {[%emt 0:00:00]} Rd7 {[%emt 0:09:53]} 35. Bc4 {[%emt 0:00:00]} Ra7 {[%emt 0:10:58]} 36. c6 {[%emt 0:00:00]} Rb8 {[%emt 0:02:06]} 37. Bd3 {[%emt 0:00:00]} g6 {[%emt 0:01:13]} 38. Rc5 {[%emt 0:00:00]} Ke7 {[%emt 0:02:43]} 39. Rc2 {[%emt 0:00:16]} Kd6 {[%emt 0:01:54]} 40. g5 {[%emt 0:00:00]} Rc7 {[%emt 0:00:00]} 41. Be4 {[%emt 0:04:37]} Rb5 {[%emt 0:08:57]} 42. Ra2 {[%emt 0:06:33]} Rb4 {[%emt 0:02:45]} 43. Kg3 {[%emt 0:02:37]} Rf7 {[%emt 0:07:44]} 44. h4 {[%emt 0:03:38]} Kc5 {[%emt 0:12:23]} 45. Rc2+ {[%emt 0:03:08]} Rc4 {[%emt 0:01:36]} 46. Rb2 {[%emt 0:00:18]} Rb4 {[%emt 0:05:02]} 47. Rc2+ {[%emt 0:01:51]} Rc4 {[%emt 0:01:40]} 48. Rb2 {[%emt 0:01:50]} Ra4 {[%emt 0:00:58]} 49. Rb7 {[%emt 0:08:30]} Rxb7 {[%emt 0:02:36]} 50. cxb7 {[%emt 0:00:03]} Rb4 {[%emt 0:00:02]} 51. h5 {[%emt 0:00:11]} Kd6 {[%emt 0:02:08]} 52. h6 {[%emt 0:00:51]} Ke6 {[%emt 0:01:47]} 53. Bxg6 {[%emt 0:00:11]} Rxb7 {[%emt 0:00:03]} 54. Be4 {[%emt 0:00:11]} Rd7 {[%emt 0:01:55]} 55. Kg4 {[%emt 0:00:42]} Rf7 {[%emt 0:00:39]} 56. Bd3 {[%emt 0:10:33]} Rf4+ {[%emt 0:00:42]} 57. Kg3 {[%emt 0:00:00]} Ra4 {[%emt 0:00:58]} 58. g6 {[%emt 0:00:00]} 1-0

[Event "Azerbaijan-ch 1st League 2025"]
[Site "Baku"]
[Date "2025.01.12"]
[Round "7.5"]
[White "Orujov, Farid"]
[Black "Ahmadov, Fariz"]
[Result "1-0"]
[Annotator "RC"]
[ECO "B01"]
[WhiteElo "2301"]
[BlackElo "2224"]
[PlyCount "87"]
[EventDate "2025.01.05"]
[EventType "swiss"]
[EventCountry "AZE"]
[SourceTitle "playchess.com"]
[Source "ChessBase"]
[SourceQuality "1"]
[TimeControl "40/5400+30:1800+30"]

1. e4 {[%emt 0:00:01]} d5 {[%emt 0:01:19]} 2. exd5 {[%emt 0:00:22]} Nf6 {[%emt 0:00:06]} 3. d4 {[%emt 0:00:05]} Nxd5 {[%emt 0:00:11]} 4. c4 {[%emt 0:00:11]} Nf6 {[%emt 0:00:04]} 5. Nf3 {[%emt 0:00:11]} e6 {[%emt 0:00:26]} 6. Be2 {[%emt 0:00:09]} c5 {[%emt 0:00:20]} 7. Nc3 {[%emt 0:01:38]} cxd4 {[%emt 0:00:25]} 8. Qxd4 {[%emt 0:00:22]} Qxd4 {[%emt 0:03:35]} 9. Nxd4 {[%emt 0:00:01]} Bb4 {[%emt 0:03:38]} 10. Ndb5 {[%emt 0:02:20]} Na6 {[%emt 0:00:24]} 11. Be3 {[%emt 0:03:23]} Ne4 {[%emt 0:04:21]} 12. Bf3 {[%emt 0:05:29]} Nec5 {[%emt 0:13:40]} 13. O-O-O {[%emt 0:07:49]} Ke7 {[%emt 0:08:24]} 14. a3 {[%emt 0:06:50]} Bxc3 {[%emt 0:00:09]} 15. Nxc3 {[%emt 0:00:01]} Nd7 {[%emt 0:00:42]} 16. Rhe1 {[%emt 0:09:46]} f6 {[%emt 0:01:25]} 17. b3 {[%emt 0:09:52]} Ne5 {[%emt 0:05:32]} 18. Be4 {[%emt 0:00:31]} Ng4 {[%emt 0:05:58]} 19. Bd4 {[%emt 0:00:02]} e5 {[%emt 0:08:28]} 20. Nb5 {[%emt 0:00:28]} Rd8 {[%emt 0:06:15]} 21. Bxa7 {[%emt 0:02:36]} Rxd1+ {[%emt 0:03:03]} 22. Rxd1 {[%emt 0:00:49]} Bd7 {[%emt 0:02:15]} 23. Bxb7 {[%emt 0:01:39]} Rxa7 {[%emt 0:00:10]} 24. Nxa7 {[%emt 0:00:22]} Nc5 {[%emt 0:00:11]} 25. Bc8 {[%emt 0:02:53]} Nxb3+ {[%emt 0:03:13]} 26. Kb2 {[%emt 0:01:03]} Nd4 {[%emt 0:00:11]} 27. Bxd7 {[%emt 0:00:23]} Kxd7 {[%emt 0:00:05]} 28. Nb5 {[%emt 0:00:01]} Nxf2 {[%emt 0:00:29]} 29. Rf1 {[%emt 0:00:03]} Ng4 {[%emt 0:03:04]} 30. Nxd4 {[%emt 0:01:29]} Ne3 {[%emt 0:00:01]} 31. Rf3 {[%emt 0:02:37]} exd4 {[%emt 0:00:15]} 32. Rf4 {[%emt 0:00:24]} Nxc4+ {[%emt 0:00:32]} 33. Ka2 {[%emt 0:00:09]} Nd6 {[%emt 0:02:01]} 34. Rxd4 {[%emt 0:00:10]} Kc6 {[%emt 0:01:17]} 35. Rb4 {[%emt 0:00:10]} h5 {[%emt 0:00:37]} 36. a4 {[%emt 0:00:18]} Nb7 {[%emt 0:00:48]} 37. Kb3 {[%emt 0:00:36]} g5 {[%emt 0:00:33]} 38. g3 {[%emt 0:00:33]} f5 {[%emt 0:00:37]} 39. Kc3 {[%emt 0:01:25]} Nc5 {[%emt 0:04:35]} 40. Kd4 {[%emt 0:00:00]} Nd7 {[%emt 0:00:00]} 41. a5 {[%emt 0:01:02]} Kc7 {[%emt 0:02:09]} 42. a6 {[%emt 0:00:49]} Nb8 {[%emt 0:00:04]} 43. Rxb8 {[%emt 0:00:25]} Kxb8 {[%emt 0:00:17]} 44. Ke5 {[%emt 0:00:07]} 1-0

[Event "Azerbaijan-ch 1st League 2025"]
[Site "Baku"]
[Date "2025.01.12"]
[Round "7.6"]
[White "Ughuzov, Ravan"]
[Black "Davudov, Tunar"]
[Result "1/2-1/2"]
[Annotator "RC"]
[ECO "C56"]
[WhiteElo "2250"]
[BlackElo "2225"]
[PlyCount "78"]
[EventDate "2025.01.05"]
[EventType "swiss"]
[EventCountry "AZE"]
[SourceTitle "playchess.com"]
[Source "ChessBase"]
[SourceQuality "1"]
[TimeControl "40/5400+30:1800+30"]

1. e4 {[%emt 0:00:04]} e5 {[%emt 0:00:20]} 2. Nf3 {[%emt 0:00:08]} Nc6 {[%emt 0:00:12]} 3. Bc4 {[%emt 0:00:06]} Nf6 {[%emt 0:00:14]} 4. d4 {[%emt 0:00:59]} exd4 {[%emt 0:00:35]} 5. e5 {[%emt 0:00:05]} d5 {[%emt 0:00:13]} 6. Bb5 {[%emt 0:00:09]} Ne4 {[%emt 0:00:15]} 7. Nxd4 {[%emt 0:00:19]} Bd7 {[%emt 0:00:27]} 8. Bxc6 {[%emt 0:00:22]} bxc6 {[%emt 0:00:11]} 9. O-O {[%emt 0:00:13]} Bc5 {[%emt 0:00:22]} 10. Be3 {[%emt 0:05:27]} Bb6 {[%emt 0:02:38]} 11. Nd2 {[%emt 0:02:11]} Nxd2 {[%emt 0:00:36]} 12. Qxd2 {[%emt 0:00:12]} c5 {[%emt 0:07:56]} 13. Nb3 {[%emt 0:08:39]} Bb5 {[%emt 0:41:57]} 14. Bg5 {[%emt 0:15:26]} Qd7 {[%emt 0:02:15]} 15. Rfe1 {[%emt 0:00:15]} Qc6 {[%emt 0:13:32]} 16. Rad1 {[%emt 0:15:58]} h6 {[%emt 0:06:28]} 17. Bh4 {[%emt 0:00:32]} g5 {[%emt 0:02:19]} 18. Bg3 {[%emt 0:01:12]} O-O-O {[%emt 0:00:15]} 19. e6 {[%emt 0:06:35]} fxe6 {[%emt 0:00:26]} 20. Re5 {[%emt 0:00:32]} Rde8 {[%emt 0:04:08]} 21. Rde1 {[%emt 0:00:35]} Ba6 {[%emt 0:01:06]} 22. Qc3 {[%emt 0:03:38]} Bb7 {[%emt 0:02:37]} 23. f3 {[%emt 0:07:45]} g4 {[%emt 0:05:49]} 24. Bf2 {[%emt 0:01:57]} d4 {[%emt 0:02:07]} 25. Qc4 {[%emt 0:00:19]} Rhf8 {[%emt 0:01:25]} 26. Nxc5 {[%emt 0:03:38]} gxf3 {[%emt 0:00:58]} 27. g3 {[%emt 0:00:22]} Re7 {[%emt 0:03:05]} 28. b4 {[%emt 0:05:08]} Rd8 {[%emt 0:01:28]} 29. a3 {[%emt 0:10:18]} Bxc5 {[%emt 0:00:17]} 30. Rxc5 {[%emt 0:01:19]} Qd6 {[%emt 0:00:06]} 31. Rce5 {[%emt 0:01:55]} d3 {[%emt 0:00:14]} 32. cxd3 {[%emt 0:00:06]} Qxd3 {[%emt 0:00:06]} 33. Qc5 {[%emt 0:00:06]} Red7 {[%emt 0:01:18]} 34. Qxa7 {[%emt 0:00:09]} Qc4 {[%emt 0:00:42]} 35. Rc5 {[%emt 0:04:02]} Qg4 {[%emt 0:00:48]} 36. Rb5 {[%emt 0:00:20]} c6 {[%emt 0:00:26]} 37. Rxb7 {[%emt 0:00:56]} Rxb7 {[%emt 0:00:19]} 38. Qa8+ {[%emt 0:00:07]} Kc7 {[%emt 0:00:15]} 39. Qa5+ {[%emt 0:00:29]} Kc8 {[%emt 0:00:08]} 1/2-1/2

[Event "Azerbaijan-ch 1st League 2025"]
[Site "Baku"]
[Date "2025.01.12"]
[Round "7.7"]
[White "Alizada, Pasham"]
[Black "Gurbanov, Ismayil"]
[Result "1/2-1/2"]
[Annotator "RC"]
[ECO "B15"]
[WhiteElo "2117"]
[BlackElo "2248"]
[PlyCount "122"]
[EventDate "2025.01.05"]
[EventType "swiss"]
[EventCountry "AZE"]
[SourceTitle "playchess.com"]
[Source "ChessBase"]
[SourceQuality "1"]
[TimeControl "40/5400+30:1800+30"]

1. e4 {[%emt 0:00:01]} c6 {[%emt 0:05:44]} 2. d4 {[%emt 0:00:12]} g6 {[%emt 0:00:07]} 3. Nc3 {[%emt 0:00:20]} Bg7 {[%emt 0:00:03]} 4. Be3 {[%emt 0:00:35]} d5 {[%emt 0:00:35]} 5. e5 {[%emt 0:00:21]} f6 {[%emt 0:01:29]} 6. exf6 {[%emt 0:04:39]} Nxf6 {[%emt 0:00:55]} 7. Qd2 {[%emt 0:02:28]} O-O {[%emt 0:02:15]} 8. Nf3 {[%emt 0:00:53]} Ng4 {[%emt 0:11:45]} 9. Bf4 {[%emt 0:04:49]} Nd7 {[%emt 0:01:31]} 10. h3 {[%emt 0:03:25]} e5 {[%emt 0:06:22]} 11. Bg5 {[%emt 0:13:24]} Ngf6 {[%emt 0:00:13]} 12. Nxe5 {[%emt 0:01:42]} Nxe5 {[%emt 0:01:28]} 13. dxe5 {[%emt 0:00:10]} Qe8 {[%emt 0:00:02]} 14. O-O-O {[%emt 0:28:07]} Qxe5 {[%emt 0:00:15]} 15. Bf4 {[%emt 0:00:12]} Qe7 {[%emt 0:04:10]} 16. Re1 {[%emt 0:00:08]} Qf7 {[%emt 0:01:15]} 17. Bd6 {[%emt 0:09:49]} Re8 {[%emt 0:02:51]} 18. Be2 {[%emt 0:07:43]} Rd8 {[%emt 0:03:25]} 19. Qf4 {[%emt 0:01:25]} g5 {[%emt 0:02:06]} 20. Qg3 {[%emt 0:00:15]} d4 {[%emt 0:00:16]} 21. Nb1 {[%emt 0:02:19]} Ne4 {[%emt 0:00:21]} 22. Bc4 {[%emt 0:02:54]} Qxc4 {[%emt 0:00:15]} 23. Rxe4 {[%emt 0:00:03]} Bf5 {[%emt 0:00:29]} 24. Nd2 {[%emt 0:02:41]} Qd5 {[%emt 0:05:22]} 25. Re5 {[%emt 0:00:05]} Bxe5 {[%emt 0:00:04]} 26. Bxe5 {[%emt 0:00:07]} h6 {[%emt 0:00:11]} 27. h4 {[%emt 0:03:02]} Re8 {[%emt 0:00:27]} 28. Re1 {[%emt 0:00:35]} Qc5 {[%emt 0:02:39]} 29. Qb3+ {[%emt 0:00:40]} Qd5 {[%emt 0:15:32]} 30. hxg5 {[%emt 0:06:49]} Qxb3 {[%emt 0:00:54]} 31. Nxb3 {[%emt 0:00:02]} hxg5 {[%emt 0:00:26]} 32. Nxd4 {[%emt 0:00:01]} Bg6 {[%emt 0:00:39]} 33. Nf3 {[%emt 0:00:37]} g4 {[%emt 0:00:36]} 34. Ng5 {[%emt 0:00:03]} Re7 {[%emt 0:01:06]} 35. f4 {[%emt 0:00:51]} gxf3 {[%emt 0:00:10]} 36. gxf3 {[%emt 0:00:05]} Rf8 {[%emt 0:00:11]} 37. Kd2 {[%emt 0:01:25]} Rd8+ {[%emt 0:07:40]} 38. Kc1 {[%emt 0:01:15]} Rd4 {[%emt 0:00:11]} 39. Re3 {[%emt 0:02:15]} Rh4 {[%emt 0:00:02]} 40. Kd2 {[%emt 0:00:00]} Rh5 {[%emt 0:00:00]} 41. f4 {[%emt 0:05:41]} Rh2+ {[%emt 0:01:30]} 42. Kc3 {[%emt 0:00:01]} Rxc2+ {[%emt 0:00:17]} 43. Kb3 {[%emt 0:00:02]} Rg2 {[%emt 0:02:50]} 44. a3 {[%emt 0:03:11]} a5 {[%emt 0:01:40]} 45. Kc4 {[%emt 0:01:48]} Rxb2 {[%emt 0:13:00]} 46. Rh3 {[%emt 0:03:54]} Rc2+ {[%emt 0:00:45]} 47. Kb3 {[%emt 0:00:32]} a4+ {[%emt 0:00:22]} 48. Kxa4 {[%emt 0:01:03]} Rxe5 {[%emt 0:00:28]} 49. fxe5 {[%emt 0:02:11]} Rb2 {[%emt 0:00:06]} 50. Rc3 {[%emt 0:00:01]} c5 {[%emt 0:01:02]} 51. Ka5 {[%emt 0:01:51]} Be8 {[%emt 0:00:46]} 52. a4 {[%emt 0:00:15]} Bd7 {[%emt 0:00:50]} 53. Rd3 {[%emt 0:09:15]} b6+ {[%emt 0:07:14]} 54. Ka6 {[%emt 0:00:03]} Bxa4 {[%emt 0:00:07]} 55. Rd6 {[%emt 0:00:49]} c4 {[%emt 0:02:25]} 56. Ne4 {[%emt 0:00:45]} b5 {[%emt 0:00:37]} 57. e6 {[%emt 0:01:05]} b4 {[%emt 0:01:24]} 58. Rd7 {[%emt 0:00:19]} Kh8 {[%emt 0:05:10]} 59. Rc7 {[%emt 0:02:40]} c3 {[%emt 0:00:19]} 60. Nf6 {[%emt 0:02:30]} Rh2 {[%emt 0:00:34]} 61. Ka5 {[%emt 0:01:00]} Bb3 {[%emt 0:03:01]} 1/2-1/2

[Event "Azerbaijan-ch 1st League 2025"]
[Site "Baku"]
[Date "2025.01.12"]
[Round "7.8"]
[White "Ibrahimli, Suat"]
[Black "Isbatov, Kanan"]
[Result "0-1"]
[Annotator "RC"]
[ECO "E02"]
[WhiteElo "1949"]
[BlackElo "1882"]
[PlyCount "84"]
[EventDate "2025.01.05"]
[EventType "swiss"]
[EventCountry "AZE"]
[SourceTitle "playchess.com"]
[Source "ChessBase"]
[SourceQuality "1"]
[TimeControl "40/5400+30:1800+30"]

1. c4 {[%emt 0:00:06]} Nf6 {[%emt 0:00:05]} 2. g3 {[%emt 0:00:04]} e6 {[%emt 0:00:05]} 3. Bg2 {[%emt 0:00:39]} d5 {[%emt 0:00:02]} 4. Nf3 {[%emt 0:00:06]} dxc4 {[%emt 0:01:24]} 5. Qa4+ {[%emt 0:00:03]} Nbd7 {[%emt 0:00:06]} 6. Qxc4 {[%emt 0:06:08]} a6 {[%emt 0:00:07]} 7. Qc2 {[%emt 0:00:12]} c5 {[%emt 0:05:56]} 8. d4 {[%emt 0:06:12]} Be7 {[%emt 0:06:01]} 9. O-O {[%emt 0:00:15]} O-O {[%emt 0:00:42]} 10. Rd1 {[%emt 0:00:26]} Qb6 {[%emt 0:18:31]} 11. Nc3 {[%emt 0:01:05]} cxd4 {[%emt 0:06:22]} 12. Na4 {[%emt 0:01:37]} Qa5 {[%emt 0:00:58]} 13. Nxd4 {[%emt 0:00:55]} Qh5 {[%emt 0:01:38]} 14. h3 {[%emt 0:00:40]} Nd5 {[%emt 0:13:53]} 15. Nf5 {[%emt 0:02:24]} exf5 {[%emt 0:00:26]} 16. Rxd5 {[%emt 0:00:14]} Nf6 {[%emt 0:00:02]} 17. Rd1 {[%emt 0:00:46]} Be6 {[%emt 0:13:21]} 18. Nb6 {[%emt 0:10:06]} Rad8 {[%emt 0:00:12]} 19. Be3 {[%emt 0:00:28]} f4 {[%emt 0:01:34]} 20. Bxf4 {[%emt 0:21:18]} Bxh3 {[%emt 0:00:06]} 21. Rxd8 {[%emt 0:06:13]} Bxd8 {[%emt 0:08:31]} 22. Bf3 {[%emt 0:00:17]} Bg4 {[%emt 0:00:31]} 23. Nc4 {[%emt 0:05:55]} Bxf3 {[%emt 0:00:07]} 24. exf3 {[%emt 0:00:19]} Qxf3 {[%emt 0:00:02]} 25. Ne5 {[%emt 0:01:17]} Qd5 {[%emt 0:08:31]} 26. Rd1 {[%emt 0:00:20]} Qe6 {[%emt 0:00:09]} 27. Qc4 {[%emt 0:10:57]} Bb6 {[%emt 0:00:44]} 28. Qb4 {[%emt 0:14:55]} Bc7 {[%emt 0:01:06]} 29. Nd7 {[%emt 0:02:01]} Nxd7 {[%emt 0:05:37]} 30. Bxc7 {[%emt 0:00:40]} Nf6 {[%emt 0:07:08]} 31. b3 {[%emt 0:06:36]} h5 {[%emt 0:00:06]} 32. Qd4 {[%emt 0:00:18]} Qh3 {[%emt 0:00:46]} 33. f3 {[%emt 0:01:50]} Re8 {[%emt 0:00:26]} 34. Qh4 {[%emt 0:01:32]} Qf5 {[%emt 0:00:19]} 35. Qf4 {[%emt 0:00:08]} Qc2 {[%emt 0:00:15]} 36. Rd2 {[%emt 0:00:46]} Qc1+ {[%emt 0:00:21]} 37. Kg2 {[%emt 0:00:04]} Nd5 {[%emt 0:00:14]} 38. Qd4 {[%emt 0:01:02]} Ne3+ {[%emt 0:00:33]} 39. Kh3 {[%emt 0:00:14]} Qh1+ {[%emt 0:00:04]} 40. Rh2 {[%emt 0:00:00]} Qf1+ {[%emt 0:00:00]} 41. Kh4 {[%emt 0:01:46]} Nf5+ {[%emt 0:00:02]} 42. Kxh5 {[%emt 0:00:38]} Nxd4 {[%emt 0:00:09]} 0-1

[Event "Azerbaijan-ch 1st League 2025"]
[Site "Baku"]
[Date "2025.01.12"]
[Round "7.9"]
[White "Abdulkarimli, Eljan"]
[Black "Salimov, Shovkat"]
[Result "1/2-1/2"]
[Annotator "RC"]
[ECO "D00"]
[WhiteElo "2163"]
[BlackElo "1977"]
[PlyCount "60"]
[EventDate "2025.01.05"]
[EventType "swiss"]
[EventCountry "AZE"]
[SourceTitle "playchess.com"]
[Source "ChessBase"]
[SourceQuality "1"]
[TimeControl "40/5400+30:1800+30"]

1. d4 {[%emt 0:00:16]} Nf6 {[%emt 0:01:17]} 2. Bg5 {[%emt 0:00:33]} d5 {[%emt 0:00:01]} 3. e3 {[%emt 0:00:31]} e6 {[%emt 0:01:35]} 4. Nd2 {[%emt 0:01:06]} c5 {[%emt 0:00:09]} 5. c3 {[%emt 0:00:21]} Nc6 {[%emt 0:00:09]} 6. f4 {[%emt 0:06:35]} Be7 {[%emt 0:02:09]} 7. Bd3 {[%emt 0:03:34]} b6 {[%emt 0:11:23]} 8. Nh3 {[%emt 0:06:48]} Bb7 {[%emt 0:07:16]} 9. Nf2 {[%emt 0:01:27]} Qc7 {[%emt 0:00:44]} 10. Nf3 {[%emt 0:05:07]} Nd7 {[%emt 0:18:34]} 11. Bxe7 {[%emt 0:03:59]} Nxe7 {[%emt 0:01:03]} 12. Ne5 {[%emt 0:05:00]} Nxe5 {[%emt 0:24:50]} 13. fxe5 {[%emt 0:01:08]} O-O-O {[%emt 0:02:36]} 14. Qg4 {[%emt 0:04:58]} Rdg8 {[%emt 0:10:57]} 15. Nh3 {[%emt 0:03:13]} Kb8 {[%emt 0:01:51]} 16. O-O-O {[%emt 0:53:54]} g6 {[%emt 0:03:02]} 17. Qf4 {[%emt 0:00:00]} Rf8 {[%emt 0:01:14]} 18. g4 {[%emt 0:00:00]} cxd4 {[%emt 0:04:11]} 19. exd4 {[%emt 0:00:00]} f5 {[%emt 0:00:35]} 20. exf6 {[%emt 0:00:00]} Qxf4+ {[%emt 0:00:02]} 21. Nxf4 {[%emt 0:00:00]} Rxf6 {[%emt 0:00:05]} 22. Rhf1 {[%emt 0:00:00]} Bc8 {[%emt 0:02:01]} 23. Ng2 {[%emt 0:00:00]} Rhf8 {[%emt 0:00:05]} 24. Rxf6 {[%emt 0:00:00]} Rxf6 {[%emt 0:00:01]} 25. Rf1 {[%emt 0:00:00]} Rxf1+ {[%emt 0:00:02]} 26. Bxf1 {[%emt 0:00:00]} Kc7 {[%emt 0:00:33]} 27. Ne1 {[%emt 0:01:12]} e5 {[%emt 0:02:18]} 28. Be2 {[%emt 0:01:26]} exd4 {[%emt 0:00:41]} 29. cxd4 {[%emt 0:00:06]} Nc6 {[%emt 0:00:20]} 30. Nc2 {[%emt 0:00:21]} Kd6 {[%emt 0:00:15]} 1/2-1/2

[Event "Azerbaijan-ch 1st League 2025"]
[Site "Baku"]
[Date "2025.01.12"]
[Round "7.10"]
[White "Hajialiyev, Islam"]
[Black "Baghirov, Mahammad"]
[Result "0-1"]
[Annotator "RC"]
[ECO "A50"]
[WhiteElo "2217"]
[BlackElo "1932"]
[PlyCount "116"]
[EventDate "2025.01.05"]
[EventType "swiss"]
[EventCountry "AZE"]
[SourceTitle "playchess.com"]
[Source "ChessBase"]
[SourceQuality "1"]
[TimeControl "40/5400+30:1800+30"]

1. Nf3 {[%emt 0:00:02]} Nf6 {[%emt 0:00:11]} 2. g3 {[%emt 0:00:02]} b6 {[%emt 0:00:25]} 3. Bg2 {[%emt 0:00:12]} Bb7 {[%emt 0:00:01]} 4. d4 {[%emt 0:00:16]} g6 {[%emt 0:00:23]} 5. O-O {[%emt 0:00:07]} Bg7 {[%emt 0:00:03]} 6. c4 {[%emt 0:00:09]} O-O {[%emt 0:00:11]} 7. Nc3 {[%emt 0:00:03]} Ne4 {[%emt 1:32:46]} 8. Bd2 {[%emt 0:01:19]} Nxd2 {[%emt 0:00:00]} 9. Qxd2 {[%emt 0:00:02]} d6 {[%emt 0:00:00]} 10. e4 {[%emt 0:02:01]} c5 {[%emt 0:00:00]} 11. Rad1 {[%emt 0:02:13]} Na6 {[%emt 0:00:00]} 12. Rfe1 {[%emt 0:04:26]} Nc7 {[%emt 0:00:00]} 13. d5 {[%emt 0:03:41]} f6 {[%emt 0:00:00]} 14. b4 {[%emt 0:09:18]} cxb4 {[%emt 0:00:00]} 15. Nb5 {[%emt 0:01:01]} a6 {[%emt 0:00:00]} 16. Nxc7 {[%emt 0:00:42]} Qxc7 {[%emt 0:00:00]} 17. Bh3 {[%emt 0:01:29]} Bc8 {[%emt 0:00:00]} 18. Bxc8 {[%emt 0:00:16]} Rfxc8 {[%emt 0:00:00]} 19. Qxb4 {[%emt 0:11:14]} Qxc4 {[%emt 0:00:00]} 20. Qxb6 {[%emt 0:02:02]} Qxa2 {[%emt 0:00:00]} 21. Nd4 {[%emt 0:01:41]} Qc4 {[%emt 0:00:00]} 22. Nc6 {[%emt 0:01:03]} Bf8 {[%emt 0:00:00]} 23. Qb7 {[%emt 0:00:35]} Re8 {[%emt 0:00:00]} 24. Rc1 {[%emt 0:00:35]} Qd3 {[%emt 0:00:00]} 25. Qd7 {[%emt 0:00:30]} Qf3 {[%emt 0:00:00]} 26. Ra1 {[%emt 0:02:00]} Qc3 {[%emt 0:00:00]} 27. Rac1 {[%emt 0:03:42]} Qa3 {[%emt 0:00:00]} 28. Ra1 {[%emt 0:03:00]} Qc3 {[%emt 0:00:00]} 29. Rec1 {[%emt 0:00:45]} Qf3 {[%emt 0:00:00]} 30. Ra4 {[%emt 0:00:54]} Bh6 {[%emt 0:00:00]} 31. Rca1 {[%emt 0:01:30]} Be3 {[%emt 0:00:00]} 32. R1a2 {[%emt 0:05:00]} Bc5 {[%emt 0:00:00]} 33. Rb2 {[%emt 0:11:15]} Kf8 {[%emt 0:00:00]} 34. Rc4 {[%emt 0:07:06]} a5 {[%emt 0:00:00]} 35. Qe6 {[%emt 0:04:45]} a4 {[%emt 0:00:00]} 36. Rxc5 {[%emt 0:04:42]} a3 {[%emt 0:00:00]} 37. Rb1 {[%emt 0:03:29]} dxc5 {[%emt 0:01:02]} 38. d6 {[%emt 0:00:53]} a2 {[%emt 0:01:09]} 39. Ra1 {[%emt 0:00:00]} Qc3 {[%emt 0:00:16]} 40. dxe7+ {[%emt 0:00:00]} Kg7 {[%emt 0:00:00]} 41. e5 {[%emt 0:04:10]} Qxa1+ {[%emt 0:00:17]} 42. Kg2 {[%emt 0:00:01]} fxe5 {[%emt 0:05:29]} 43. Nxe5 {[%emt 0:00:22]} Qf1+ {[%emt 0:00:14]} 44. Kxf1 {[%emt 0:00:24]} a1=Q+ {[%emt 0:40:03]} 45. Kg2 {[%emt 0:00:11]} Qa2 {[%emt 0:00:00]} 46. Nc4 {[%emt 0:00:05]} Ra6 {[%emt 0:00:00]} 47. Qe5+ {[%emt 0:01:48]} Rf6 {[%emt 0:00:00]} 48. Nd6 {[%emt 0:00:25]} Qa8+ {[%emt 0:00:00]} 49. f3 {[%emt 0:00:06]} Qxf3+ {[%emt 0:00:00]} 50. Kh3 {[%emt 0:00:04]} Qc6 {[%emt 0:00:00]} 51. Nxe8+ {[%emt 0:00:28]} Qxe8 {[%emt 0:00:00]} 52. Qxc5 {[%emt 0:00:03]} Rf7 {[%emt 0:00:00]} 53. Qe5+ {[%emt 0:00:27]} Kg8 {[%emt 0:00:00]} 54. Qd5 {[%emt 0:00:20]} Qxe7 {[%emt 0:00:00]} 55. Qa8+ {[%emt 0:00:03]} Rf8 {[%emt 0:00:00]} 56. Qd5+ {[%emt 0:00:05]} Qf7 {[%emt 0:00:00]} 57. Qd6 {[%emt 0:00:05]} Qf1+ {[%emt 0:00:00]} 58. Kh4 {[%emt 0:00:06]} Qf6+ {[%emt 0:00:00]} 0-1

[Event "Azerbaijan-ch 1st League 2025"]
[Site "Baku"]
[Date "2025.01.12"]
[Round "7.11"]
[White "Rzayev, Chingiz"]
[Black "Idrisov, Tabriz"]
[Result "1-0"]
[Annotator "RC"]
[ECO "B06"]
[WhiteElo "2153"]
[BlackElo "2073"]
[PlyCount "61"]
[EventDate "2025.01.05"]
[EventType "swiss"]
[EventCountry "AZE"]
[SourceTitle "playchess.com"]
[Source "ChessBase"]
[SourceQuality "1"]
[TimeControl "40/5400+30:1800+30"]

1. e4 {[%emt 0:00:01]} d6 {[%emt 0:02:24]} 2. Nc3 {[%emt 0:00:16]} g6 {[%emt 0:03:15]} 3. f4 {[%emt 0:00:03]} Bg7 {[%emt 0:00:33]} 4. Nf3 {[%emt 0:00:05]} c6 {[%emt 0:03:07]} 5. d4 {[%emt 0:01:58]} b5 {[%emt 0:09:11]} 6. Bd3 {[%emt 0:03:05]} a6 {[%emt 0:06:34]} 7. Be3 {[%emt 0:08:03]} Nf6 {[%emt 0:04:27]} 8. h3 {[%emt 0:00:20]} O-O {[%emt 0:03:24]} 9. O-O {[%emt 0:00:32]} b4 {[%emt 0:01:26]} 10. Ne2 {[%emt 0:00:31]} d5 {[%emt 0:04:18]} 11. e5 {[%emt 0:00:53]} Ne4 {[%emt 0:00:18]} 12. Qe1 {[%emt 0:00:04]} a5 {[%emt 0:04:28]} 13. Ng3 {[%emt 0:02:12]} Nxg3 {[%emt 0:11:09]} 14. Qxg3 {[%emt 0:00:08]} f5 {[%emt 0:01:15]} 15. exf6 {[%emt 0:00:54]} exf6 {[%emt 0:02:33]} 16. f5 {[%emt 0:00:12]} g5 {[%emt 0:02:40]} 17. h4 {[%emt 0:03:21]} h6 {[%emt 0:02:49]} 18. hxg5 {[%emt 0:00:38]} hxg5 {[%emt 0:00:26]} 19. Rae1 {[%emt 0:01:56]} Nd7 {[%emt 0:03:53]} 20. Qh2 {[%emt 0:05:19]} Rf7 {[%emt 0:02:04]} 21. Kf2 {[%emt 0:07:46]} Nf8 {[%emt 0:03:11]} 22. Rh1 {[%emt 0:01:29]} Re7 {[%emt 0:05:37]} 23. Qg3 {[%emt 0:07:53]} Re4 {[%emt 0:02:57]} 24. Nd2 {[%emt 0:07:20]} Re8 {[%emt 0:06:26]} 25. Rh5 {[%emt 0:01:55]} Ra7 {[%emt 0:00:36]} 26. Reh1 {[%emt 0:07:04]} Rd7 {[%emt 0:10:38]} 27. Qh3 {[%emt 0:04:42]} Kf7 {[%emt 0:01:04]} 28. Be2 {[%emt 0:01:52]} Qc7 {[%emt 0:01:28]} 29. Rh8 {[%emt 0:16:51]} Rxe3 {[%emt 0:01:29]} 30. Bh5+ {[%emt 0:00:28]} Ke7 {[%emt 0:00:29]} 31. Qxe3+ {[%emt 0:18:09]} 1-0